bitfinex-derivatives/quotes_SOLF0:USTF0_20260304
["timestamp","ask_amount","ask_price","bid_price","bid_amount"]
[1772589872547,11.20050462,87.246,87.163,10.81371368]
[1772589874248,10.316,87.233,87.163,10.81371368]
[1772589874652,11.20050462,87.232,87.163,10.81371368]
[1772589875045,10.317,87.231,87.163,10.81371368]
[1772589875347,11.20050462,87.23,87.163,10.81371368]
[1772589875548,10.32,87.202,87.146,10.81371368]
[1772589875853,10.64185705,87.273,87.146,10.81371368]
[1772589875854,11.20050462,87.273,87.146,10.81371368]
[1772589876552,21.51750462,87.226,87.149,10.81371368]
[1772589876748,11.20050462,87.225,87.149,10.81371368]
[1772589877148,10.318,87.223,87.15,10.326]
[1772589877548,11.49,87.27,87.151,10.81371368]
[1772589877549,11.20050462,87.222,87.151,10.81371368]
[1772589877949,11.20050462,87.218,87.151,10.81371368]
[1772589878952,11.20050462,87.199,87.126,10.81371368]
[1772589879654,11.20050462,87.193,87.126,10.81371368]
[1772589880653,10.321,87.192,87.127,10.329]
[1772589880952,10.321,87.192,87.128,10.81371368]
[1772589881156,11.20050462,87.191,87.128,10.81371368]
[1772589881353,11.20050462,87.177,87.075,10.81371368]
[1772589882153,10.325,87.164,87.103,10.81371368]
[1772589882849,11.20050462,87.177,87.103,10.81371368]
[1772589882850,10.323,87.175,87.105,10.332]
[1772589883157,11.20050462,87.174,87.106,10.81371368]
[1772589883851,11.20050462,87.174,87.058,285.74620603]
[1772589883852,11.20050462,87.149,87.083,10.81371368]
[1772589884456,11.20050462,87.149,87.085,10.81371368]
[1772589885459,11.20050462,87.149,87.089,10.81371368]
[1772589886053,11.20050462,87.149,87.09,10.333]
[1772589886358,11.20050462,87.149,87.089,10.81371368]
[1772589887661,11.20050462,87.149,87.09,10.333]
[1772589888462,11.20050462,87.149,87.09,20.41147333]
[1772589889361,124.0,87.2,87.094,10.07847333]
[1772589889362,10.38605326,87.199,87.094,10.07847333]
[1772589890361,10.38605326,87.172,87.113,10.07847333]
[1772589891061,10.38605326,87.172,87.093,10.07847333]
[1772589891567,10.38605326,87.172,87.105,10.07847333]
[1772589892867,10.38605326,87.17,87.105,10.07847333]
[1772589893072,10.38605326,87.17,87.084,10.07847333]
[1772589894276,10.38605326,87.148,87.091,10.333]
[1772589894979,10.38605326,87.146,87.084,10.07847333]
[1772589895570,10.327,87.145,87.084,10.07847333]
[1772589896373,10.38605326,87.146,87.086,10.07847333]
[1772589897076,10.38605326,87.166,87.091,10.07847333]
[1772589897569,10.38605326,87.153,87.091,10.07847333]
[1772589898172,175.0,87.211,87.102,10.07847333]
[1772589898173,10.38605326,87.17,87.102,10.07847333]
[1772589898877,10.38605326,87.166,87.086,10.07847333]
[1772589900369,10.38605326,87.147,87.087,10.334]
[1772589900574,10.38605326,87.147,87.086,10.07847333]
[1772589900575,10.38605326,87.147,87.07,10.07847333]
[1772589900772,10.38605326,87.115,87.047,10.07847333]
[1772589901377,10.331,87.11,87.051,10.338]
[1772589901780,10.38605326,87.115,87.03,0.00023789]
[1772589901781,10.38605326,87.115,87.057,10.07847333]
[1772589903178,20.649,87.166,87.057,10.07847333]
[1772589903179,10.38605326,87.112,87.057,10.07847333]
[1772589903378,10.38605326,87.112,87.03,0.00023789]
[1772589905285,10.335,87.078,87.03,0.00023789]
[1772589906383,10.38605326,87.075,87.03,0.00023789]
[1772589906991,10.38605326,87.061,87.03,0.00023789]
[1772589909391,10.38605326,87.078,87.03,0.00023789]
[1772589909787,10.38605326,87.052,87.03,0.00023789]
[1772589910989,10.38605326,87.05,87.03,0.00023789]
[1772589911688,10.38605326,87.067,87.03,0.00023789]
[1772589912189,10.38605326,87.039,87.03,0.00023789]
[1772589912592,10.38605326,87.036,87.03,0.00023789]
[1772589913287,10.38605326,87.034,87.03,0.00023789]
[1772589914091,10.38605326,87.032,87.03,0.00023789]
[1772589914687,175.0,87.087,86.92,2.00081067]
[1772589914688,160.872,87.023,86.92,2.00081067]
[1772589914888,482.386,87.065,86.891,10.07847333]
[1772589914889,10.38605326,86.959,86.891,10.07847333]
[1772589915287,160.864,87.027,86.868,445.13497549]
[1772589915288,10.347,86.975,86.893,10.07847333]
[1772589915493,160.882,87.018,86.893,10.07847333]
[1772589915494,10.38605326,86.974,86.893,10.07847333]
[1772589915995,10.38605326,86.969,86.893,10.07847333]
[1772589918193,10.38605326,86.969,86.895,8.89877714]
[1772589918797,9.62939609,86.966,86.895,8.89877714]
[1772589921295,9.25677969,87.026,86.897,8.95513319]
[1772589922295,9.25677969,86.991,86.911,8.95513319]
[1772589922892,9.25677969,86.991,86.915,8.95513319]
[1772589923493,9.25677969,87.012,86.929,8.95513319]
[1772589924696,9.25677969,87.012,86.952,8.95513319]
[1772589926301,10.341,87.026,86.957,8.95513319]
[1772589926699,9.25677969,87.03,86.957,8.95513319]
[1772589926895,9.25677969,87.03,86.959,10.349]
[1772589927099,10.341,87.029,86.959,8.95513319]
[1772589927402,9.25677969,87.028,86.959,8.95513319]
[1772589927602,9.25677969,87.028,86.904,161.091]
[1772589927603,9.25677969,87.028,86.962,8.95513319]
[1772589928205,9.25677969,87.028,86.904,161.091]
[1772589928206,9.25677969,87.05,86.964,8.95513319]
[1772589929802,10.339,87.039,86.974,8.95513319]
[1772589930204,9.25677969,87.038,86.974,8.95513319]
[1772589931200,9.25677969,87.034,86.974,8.95513319]
[1772589932500,9.25677969,87.034,86.974,19.30213319]
[1772589932703,9.25677969,87.034,86.975,8.95513319]
[1772589933505,9.25677969,87.032,86.921,8.95513319]
[1772589933699,9.25677969,87.032,86.96,10.349]
[1772589933902,9.25677969,87.031,86.96,10.349]
[1772589935207,9.25677969,87.028,86.96,10.349]
[1772589935406,9.25677969,87.028,86.955,8.95513319]
[1772589936708,9.25677969,87.011,86.937,19.30613319]
[1772589937407,9.25677969,87.011,86.938,8.95513319]
[1772589938198,9.25677969,87.011,86.939,10.351]
[1772589938507,9.25677969,87.05,86.94,8.95513319]
[1772589938804,9.25677969,87.049,86.94,8.95513319]
[1772589939309,9.13211513,87.05,86.94,8.95513319]
[1772589939310,9.25677969,87.0,86.94,8.95513319]
[1772589941602,10.346,86.983,86.94,8.95513319]
[1772589942210,19.60177969,86.994,86.94,8.95513319]
[1772589942404,160.776,87.075,86.94,8.95513319]
[1772589942405,9.25677969,87.031,86.94,8.95513319]
[1772589943104,10.344,87.003,86.948,8.95513319]
[1772589943504,9.25677969,87.002,86.948,8.95513319]
[1772589944106,9.25677969,87.056,86.948,8.95513319]
[1772589944412,9.25677969,87.004,86.95,8.95513319]
[1772589945206,9.25677969,87.001,86.933,8.95513319]
[1772589945906,9.25677969,87.001,86.935,8.95513319]
[1772589946511,10.342,87.016,86.935,8.95513319]
[1772589947108,19.59877969,87.016,86.935,8.95513319]
[1772589947413,19.59877969,87.016,86.957,10.349]
[1772589948001,10.341,87.027,86.963,8.57857786]
[1772589949608,10.341,87.027,86.967,8.57857786]
[1772589950611,10.342,87.016,86.967,8.57857786]
[1772589952405,8.26215073,87.012,86.934,8.57857786]
[1772589952912,8.26215073,86.966,86.902,8.57857786]
[1772589953218,8.26215073,86.966,86.869,8.57857786]
[1772589953620,18.61215073,86.954,86.887,8.57857786]
[1772589954210,10.35,86.952,86.888,10.357]
[1772589954415,10.35,86.952,86.889,8.57857786]
[1772589955114,10.35,86.952,86.891,8.57857786]
[1772589958412,8.26215073,86.971,86.891,8.57857786]
[1772589960113,8.26215073,86.967,86.893,8.57857786]
[1772589960715,8.26215073,86.962,86.893,8.57857786]
[1772589960917,8.26215073,86.994,86.893,8.57857786]
[1772589961115,10.345,86.99,86.917,10.354]
[1772589961421,8.26215073,86.989,86.918,8.57857786]
[1772589961618,8.26215073,87.006,86.918,8.57857786]
[1772589961818,8.26215073,87.006,86.94,8.57857786]
[1772589962920,8.26215073,87.023,86.944,8.57857786]
[1772589963824,8.26215073,87.022,86.947,8.57857786]
[1772589965023,8.26215073,87.007,86.947,8.57857786]
[1772589966026,8.26215073,87.039,86.947,8.57857786]
[1772589966426,8.26215073,87.039,86.982,8.57857786]
[1772589967224,8.26215073,87.039,86.926,8.57857786]
[1772589968321,8.26215073,87.03,86.937,8.57857786]
[1772589969126,8.26215073,87.028,86.963,18.92657786]
[1772589969320,8.26215073,87.028,86.964,8.57857786]
[1772589970125,21.11547001,87.083,86.9,13.98265507]
[1772589970126,8.26215073,87.026,86.9,13.98265507]
[1772589970334,8.26215073,87.026,86.913,13.98265507]
[1772589970733,8.26215073,87.022,86.916,161.068]
[1772589971234,8.26215073,87.022,86.911,13.98265507]
[1772589971426,8.26215073,87.022,86.912,13.98265507]
[1772589971628,8.26215073,86.998,86.927,10.353]
[1772589972032,8.26215073,86.998,86.928,6.33966269]
[1772589973037,8.26215073,86.998,86.933,6.2901199]
[1772589973737,8.26215073,86.998,86.948,10.35]
[1772589973937,8.26215073,86.998,86.948,16.61415252]
[1772589974134,8.26215073,86.998,86.841,11.49]
[1772589974135,8.26215073,87.041,86.949,6.26415252]
[1772589974333,8.26215073,87.054,86.992,10.345]
[1772589975329,8.26215073,87.052,86.992,10.345]
[1772589976629,8.26215073,87.052,86.997,10.344]
[1772589978030,8.17919684,87.05,86.986,10.346]
[1772589978731,8.17919684,87.05,86.937,182.19660446]
[1772589978732,8.17919684,87.05,86.995,10.345]
[1772589979035,8.17919684,87.05,86.987,6.1244362]
[1772589979231,8.17919684,87.047,86.987,6.1244362]
[1772589979437,8.17919684,87.047,86.968,6.09862455]
[1772589980840,7.39556398,87.023,86.956,10.349]
[1772589981242,7.39556398,87.023,86.956,16.37454477]
[1772589981436,7.39556398,87.02,86.956,6.02554477]
[1772589982542,7.39556398,87.001,86.942,10.351]
[1772589982737,7.39556398,87.001,86.936,5.88976323]
[1772589983946,10.344,87.0,86.939,5.86735233]
[1772589985847,7.39556398,87.001,86.942,5.80605016]
[1772589986343,17.73956398,87.0,86.942,5.80605016]
[1772589987747,7.39556398,87.0,86.942,5.80605016]
[1772589992843,7.39556398,86.982,86.922,5.47939699]
[1772589993248,7.39556398,87.019,86.922,5.47939699]
[1772589993652,7.39556398,86.993,86.922,5.47939699]
[1772589995156,7.39556398,86.977,86.922,5.47939699]
[1772589995358,7.39556398,86.977,86.889,5.34201835]
[1772589995951,7.39556398,86.977,86.911,5.34405788]
[1772589996158,7.39556398,86.977,86.879,5.34405788]
[1772589996550,7.39556398,86.962,86.894,5.32310829]
[1772589997661,7.39556398,86.96,86.896,5.28958102]
[1772589997860,7.39556398,86.979,86.896,5.28958102]
[1772589998358,7.39556398,86.994,86.921,5.26912266]
[1772589999851,7.39556398,86.994,86.927,5.26165325]
[1772590000457,7.39556398,86.994,86.91,5.24168259]
[1772590001257,7.39556398,86.979,86.913,10.354]
[1772590001756,7.39556398,86.976,86.91,5.24168259]
[1772590001962,7.39556398,86.976,86.892,5.37841242]
[1772590002467,7.39556398,86.967,86.896,5.35888578]
[1772590003067,7.39556398,86.967,86.902,5.39775678]
[1772590003260,7.39556398,87.004,86.902,5.39775678]
[1772590003966,7.39556398,87.002,86.902,5.39775678]
[1772590004367,7.39556398,87.001,86.902,5.39775678]
[1772590004563,17.74356398,86.969,86.902,5.39775678]
[1772590004869,7.39556398,86.968,86.902,5.39775678]
[1772590005465,10.348,86.965,86.902,5.39775678]
[1772590005671,7.39556398,86.964,86.879,5.34479462]
[1772590006066,7.39556398,86.955,86.897,10.356]
[1772590006469,7.39556398,86.974,86.898,5.32625522]
[1772590006866,10.347,86.973,86.917,15.67904575]
[1772590007165,7.39556398,86.972,86.917,5.32504575]
[1772590009259,7.44470548,86.97,86.917,5.32504575]
[1772590010164,7.44470548,86.968,86.899,5.14845691]
[1772590011273,10.349,86.955,86.899,5.14845691]
[1772590011573,7.44470548,86.968,86.899,5.14845691]
[1772590011771,7.44470548,86.968,86.901,5.10532028]
[1772590012369,7.44470548,86.968,86.904,5.08802099]
[1772590012961,7.44470548,86.966,86.904,5.08802099]
[1772590013469,7.44470548,86.962,86.886,5.05004366]
[1772590014167,7.44470548,86.962,86.889,5.03316053]
[1772590014664,7.44470548,86.962,86.905,10.355]
[1772590014869,7.44470548,86.962,86.906,5.03323173]
[1772590015872,7.44470548,86.962,86.91,5.0181168]
[1772590016074,17.79370548,86.962,86.91,5.0181168]
[1772590016269,17.79370548,86.962,86.827,176.0]
[1772590016270,7.44470548,86.961,86.862,5.00170925]
[1772590016569,7.44470548,86.933,86.862,5.00170925]
[1772590017776,7.44470548,86.921,86.862,5.00170925]
[1772590017970,7.44470548,86.921,86.829,4.93261305]
[1772590018970,7.44470548,86.938,86.85,4.86461021]
[1772590020274,7.44470548,86.938,86.88,4.83460908]
[1772590020870,7.44470548,86.938,86.881,10.358]
[1772590021673,7.44470548,86.938,86.882,4.79700512]
[1772590022079,7.44470548,86.979,86.886,4.79700512]
[1772590022969,7.44470548,86.957,86.886,4.79700512]
[1772590025675,7.44470548,86.955,86.888,4.79722237]
[1772590026072,7.44470548,86.955,86.853,4.79722237]
[1772590026671,7.44470548,86.94,86.884,10.358]
[1772590027071,17.79570548,86.938,86.884,10.358]
[1772590028480,7.44470548,86.938,86.884,10.358]
[1772590028681,10.35,86.948,86.829,161.23]
[1772590028682,7.44470548,86.947,86.889,4.79732262]
[1772590030188,7.44470548,86.964,86.891,4.77043272]
[1772590030582,7.44470548,86.964,86.874,4.71670105]
[1772590030988,7.44470548,86.936,86.874,4.71670105]
[1772590032084,7.44470548,86.93,86.874,15.07570105]
[1772590032288,7.44470548,86.93,86.875,4.69060807]
[1772590034297,7.44470548,86.929,86.875,4.69060807]
[1772590035094,7.44470548,86.959,86.875,4.69060807]
[1772590035297,7.44470548,86.974,86.875,4.69060807]
[1772590035599,7.44470548,86.974,86.881,4.63201829]
[1772590035894,7.44470548,86.974,86.882,4.63338222]
[1772590036099,7.44470548,86.97,86.905,4.63338222]
[1772590036696,10.348,86.966,86.906,10.355]
[1772590036996,7.44470548,86.97,86.906,10.355]
[1772590037594,7.44470548,86.97,86.914,4.61710329]
[1772590038203,7.44470548,86.97,86.92,10.353]
[1772590038399,7.44470548,86.97,86.866,161.161]
[1772590038400,7.1673862,86.986,86.921,4.59729751]
[1772590039298,10.68076699,86.998,86.921,4.59729751]
[1772590039299,7.13443202,86.981,86.923,10.353]
[1772590039901,7.13443202,87.029,86.929,4.58349982]
[1772590040100,7.13443202,87.029,86.926,13.98265507]
[1772590040101,7.13443202,87.029,86.939,4.58349982]
[1772590040302,7.13443202,87.017,86.946,4.57136029]
[1772590041110,7.13443202,87.014,86.947,4.47850933]
[1772590042301,7.13443202,87.014,86.959,4.45576977]
[1772590042798,7.13443202,87.014,86.968,10.348]
[1772590043003,7.13443202,87.014,86.959,4.45576977]
[1772590044006,7.13443202,87.014,86.963,4.3836166]
[1772590046607,7.13443202,87.014,86.922,13.98265507]
[1772590046608,7.13443202,87.014,86.946,4.15604447]
[1772590046813,7.13443202,87.002,86.922,4.15604447]
[1772590047310,7.13443202,87.002,86.933,4.14476366]
[1772590048215,7.13443202,86.99,86.933,4.14476366]
[1772590049113,7.13443202,86.99,86.933,14.49676366]
[1772590049813,7.13443202,86.99,86.933,4.14476366]
[1772590050904,7.13443202,86.987,86.914,4.10790045]
[1772590051610,7.13443202,86.976,86.914,4.10790045]
[1772590051812,7.13443202,86.976,86.872,13.98265507]
[1772590052008,7.13443202,86.976,86.873,4.09847538]
[1772590052312,7.13443202,86.974,86.905,4.08783211]
[1772590052517,7.13443202,87.019,86.905,4.08783211]
[1772590052912,181.467,87.065,86.934,4.09246397]
[1772590052913,7.13443202,87.0,86.934,4.09246397]
[1772590053416,7.13443202,87.0,86.891,4.08203036]
[1772590053616,7.13443202,86.997,86.928,10.353]
[1772590053813,7.13443202,86.997,86.921,4.08333459]
[1772590054214,7.13443202,86.994,86.927,10.353]
[1772590054414,7.13443202,86.994,86.921,4.08333459]
[1772590055120,7.13443202,86.972,86.906,10.355]
[1772590055616,7.13443202,86.972,86.906,14.3685542]
[1772590055916,10.348,86.971,86.91,10.355]
[1772590057216,7.13443202,86.972,86.919,10.354]
[1772590057718,7.13443202,86.972,86.911,4.01276248]
[1772590058416,10.345,86.994,86.931,10.352]
[1772590058617,7.13443202,86.993,86.931,10.352]
[1772590060021,7.13443202,86.988,86.926,4.00411255]
[1772590060225,7.13443202,87.005,86.926,4.00411255]
[1772590060424,7.13443202,87.051,86.926,4.00411255]
[1772590060716,7.13443202,87.019,86.954,10.349]
[1772590060921,7.13443202,87.019,86.902,4.0129093]
[1772590062022,7.13443202,86.991,86.886,4.0044843]
[1772590062419,7.13443202,86.988,86.921,3.99496012]
[1772590063222,7.13443202,86.988,86.931,10.352]
[1772590063425,10.346,86.987,86.931,10.352]
[1772590063825,7.13443202,86.986,86.931,10.352]
[1772590064229,7.13443202,86.984,86.922,4.01487849]
[1772590065224,10.347,86.971,86.922,4.01487849]
[1772590065920,7.13443202,86.98,86.922,4.01487849]
[1772590067224,2.00151839,87.012,86.922,4.01487849]
[1772590067225,7.13443202,86.978,86.922,4.01487849]
[1772590067921,7.13443202,86.973,86.922,4.01487849]
[1772590068125,7.13443202,86.973,86.915,10.354]
[1772590068430,7.13443202,86.973,86.868,3.95506863]
[1772590068628,7.26120364,86.932,86.868,3.95506863]
[1772590069218,7.26120364,86.928,86.868,3.95506863]
[1772590069425,7.26120364,86.928,86.839,3.94756353]
[1772590070326,7.26120364,86.925,86.859,3.94862347]
[1772590070933,7.26120364,86.923,86.859,3.94862347]
[1772590071434,7.26120364,86.923,86.833,3.93104142]
[1772590071636,7.26120364,86.909,86.849,10.362]
[1772590073033,7.26120364,86.909,86.85,4.07607548]
[1772590073421,7.26120364,86.907,86.838,10.363]
[1772590073628,7.26120364,86.907,86.839,4.06888837]
[1772590074536,7.26120364,86.905,86.825,10.365]
[1772590074830,7.26120364,86.905,86.826,4.03037192]
[1772590075237,7.26120364,86.895,86.829,4.02247798]
[1772590076035,7.26120364,86.895,86.833,4.02339688]
[1772590076836,7.26120364,86.895,86.835,14.36697113]
[1772590077235,7.26120364,86.895,86.835,4.00297113]
[1772590077438,7.26120364,86.895,86.822,3.99517014]
[1772590077635,7.26120364,86.893,86.823,10.365]
[1772590078536,7.26120364,86.893,86.812,13.73106475]
[1772590078730,7.26120364,86.893,86.813,3.99759359]
[1772590080639,10.353,86.923,86.854,10.361]
[1772590080835,7.26120364,86.91,86.854,10.361]
[1772590082139,7.26120364,86.91,86.845,4.09014374]
[1772590082344,7.26120364,86.91,86.825,4.07607052]
[1772590083145,7.26120364,86.887,86.812,13.73106475]
[1772590083345,7.26120364,86.887,86.813,4.21686048]
[1772590084044,7.26120364,86.885,86.826,10.365]
[1772590084245,7.26120364,86.885,86.813,4.21686048]
[1772590084647,10.359,86.875,86.814,4.11773486]
[1772590085146,17.61920364,86.885,86.815,10.366]
[1772590085348,7.26120364,86.884,86.815,10.366]
[1772590085549,7.26120364,86.884,86.814,4.11773486]
[1772590086344,7.26120364,86.882,86.813,4.10450483]
[1772590086748,7.26120364,86.882,86.825,10.365]
[1772590087449,7.26120364,86.882,86.835,10.364]
[1772590088149,14.18081935,86.961,86.812,13.73106475]
[1772590088150,7.26120364,86.903,86.847,4.0988076]
[1772590088350,7.26120364,86.903,86.813,4.09192276]
[1772590089239,7.26120364,86.903,86.812,13.73106475]
[1772590089240,7.26120364,86.903,86.836,4.0647897]
[1772590090545,7.26120364,86.936,86.858,4.05200125]
[1772590090949,7.26120364,87.005,86.858,4.05200125]
[1772590091148,11.49,87.004,86.858,4.05200125]
[1772590091343,7.26120364,87.003,86.858,4.05200125]
[1772590091651,7.26120364,86.958,86.884,4.07899766]
[1772590093245,7.26120364,86.957,86.886,4.12149708]
[1772590094051,7.26120364,86.981,86.903,4.12215866]
[1772590095145,7.26120364,86.978,86.903,4.12215866]
[1772590096344,7.26120364,86.978,86.916,10.354]
[1772590096543,7.26120364,86.978,86.917,4.26189587]
[1772590096751,7.26120364,86.978,86.919,10.354]
[1772590098154,7.26120364,86.978,86.917,4.26189587]
[1772590098959,6.62801916,86.965,86.871,4.2059987]
[1772590099655,6.99872545,86.94,86.872,10.359]
[1772590099957,6.99872545,86.94,86.872,14.55692749]
[1772590100360,6.99872545,86.94,86.879,10.358]
[1772590100754,6.99872545,86.94,86.88,4.18392876]
[1772590101860,6.99872545,86.94,86.883,4.17858827]
[1772590102159,6.99872545,86.959,86.883,4.17858827]
[1772590102555,6.99872545,86.955,86.884,4.17278174]
[1772590103458,6.99872545,86.952,86.884,4.17278174]
[1772590104051,6.99872545,86.946,86.886,4.11481471]
[1772590104657,6.99872545,86.944,86.886,4.11481471]
[1772590105058,6.99872545,86.94,86.869,4.10424404]
[1772590106254,6.99872545,86.93,86.87,10.359]
[1772590106455,6.99872545,86.93,86.871,4.09372516]
[1772590107256,6.99872545,86.93,86.883,10.358]
[1772590107954,6.99872545,86.93,86.871,14.45272516]
[1772590108162,6.99872545,86.965,86.872,3.99454522]
[1772590108657,6.99872545,86.965,86.909,4.03819415]
[1772590111759,6.99872545,86.965,86.923,10.353]
[1772590112758,6.99872545,86.965,86.913,10.354]
[1772590112956,6.99872545,86.965,86.832,161.225]
[1772590112957,6.99872545,86.965,86.854,4.05707515]
[1772590113156,6.99872545,86.965,86.855,4.05707515]
[1772590113563,160.908,87.004,86.882,10.358]
[1772590113564,6.99872545,86.947,86.882,10.358]
[1772590113762,6.99872545,86.947,86.86,4.05243036]
[1772590115266,6.99872545,86.929,86.869,10.36]
[1772590115565,6.99872545,86.929,86.86,4.05243036]
[1772590116257,6.99872545,86.927,86.862,4.03102368]
[1772590116965,6.99872545,86.925,86.868,10.36]
[1772590117365,6.99872545,86.925,86.862,4.03102368]
[1772590118065,6.99872545,86.923,86.864,10.36]
[1772590118369,6.99872545,86.923,86.865,4.09196521]
[1772590119266,6.99872545,86.923,86.872,10.359]
[1772590119761,6.99872545,86.923,86.865,4.09196521]
[1772590120361,6.99872545,86.92,86.865,4.09196521]
[1772590121469,6.99872545,86.92,86.862,10.36]
[1772590122872,6.99872545,86.92,86.862,14.4561466]
[1772590123072,6.99872545,86.92,86.867,10.36]
[1772590123674,6.99872545,86.92,86.867,14.45198462]
[1772590124575,6.99872545,86.936,86.872,4.08746655]
[1772590124976,6.99872545,86.97,86.872,4.08746655]
[1772590125174,6.99872545,86.97,86.846,13.98265507]
[1772590125175,6.99872545,86.955,86.89,4.08928434]
[1772590125772,6.99872545,86.95,86.893,10.357]
[1772590126878,6.99872545,86.945,86.89,4.08928434]
[1772590127773,6.99872545,86.945,86.9,10.356]
[1772590128478,6.8487183,86.976,86.913,3.86085234]
[1772590129672,6.8487183,87.011,86.931,14.20716977]
[1772590130477,6.8487183,87.011,86.931,10.352]
[1772590130881,6.8487183,86.989,86.921,10.353]
[1772590132377,6.8487183,86.983,86.921,14.13356308]
[1772590133181,6.8487183,86.978,86.921,14.13356308]
[1772590134777,6.8487183,86.978,86.815,280.50847414]
[1772590134778,6.8487183,86.978,86.93,10.352]
[1772590136382,6.8487183,86.978,86.922,3.7255505]
[1772590137584,6.8487183,86.978,86.924,3.75049037]
[1772590139481,6.8487183,86.978,86.926,10.353]
[1772590139881,6.8487183,86.978,86.926,14.09267378]
[1772590141475,10.344,87.001,86.927,3.7485171]
[1772590141680,6.8487183,87.01,86.927,3.7485171]
[1772590142385,6.8487183,87.008,86.939,3.7489276]
[1772590143380,6.8487183,87.007,86.943,3.76591385]
[1772590143981,6.8487183,87.003,86.945,3.76631147]
[1772590144586,6.8487183,87.003,86.948,10.35]
[1772590144888,6.8487183,87.003,86.949,3.73831091]
[1772590145089,10.342,87.014,86.949,3.73831091]
[1772590145482,10.342,87.014,86.96,14.08381336]
[1772590145687,6.8487183,87.03,86.961,3.73520825]
[1772590146789,6.8487183,87.03,86.979,10.347]
[1772590147290,6.8487183,87.03,86.969,3.81508316]
[1772590148679,6.8487183,87.03,86.922,3.80779528]
[1772590149282,6.8487183,87.03,86.902,21.16760446]
[1772590149283,6.8487183,87.018,86.948,3.8044929]
[1772590149792,6.8487183,87.013,86.949,14.15484618]
[1772590150292,6.8487183,87.013,86.955,14.15058153]
[1772590151391,10.67896187,87.061,86.955,14.15058153]
[1772590151392,6.8487183,87.011,86.955,14.15058153]
[1772590152287,6.8487183,87.007,86.955,3.80158153]
[1772590153581,6.8487183,87.007,86.942,10.351]
[1772590153785,6.8487183,86.995,86.937,4.02651144]
[1772590154484,6.8487183,86.995,86.885,161.127]
[1772590154485,4.53180009,87.0,86.95,4.00654028]
[1772590154687,6.8487183,87.011,86.95,4.00654028]
[1772590155092,6.8487183,87.011,86.965,4.00654028]
[1772590155790,6.8487183,87.011,86.969,10.348]
[1772590155987,6.8487183,87.011,86.931,4.00370913]
[1772590156494,6.8487183,87.011,86.91,20.71]
[1772590156495,6.8487183,87.011,86.965,4.00063981]
[1772590156788,4.53180009,87.02,86.965,4.00063981]
[1772590156981,10.67896187,87.069,86.921,161.06]
[1772590156982,4.53180009,87.04,86.981,3.86720971]
[1772590157692,11.38051839,87.04,86.981,3.86720971]
[1772590157892,6.8487183,87.039,86.981,3.86720971]
[1772590158296,7.07721205,87.059,86.984,3.86222825]
[1772590158496,7.07721205,87.039,86.967,3.86222825]
[1772590159191,7.07721205,87.039,86.9,165.62980009]
[1772590159192,7.07721205,87.109,87.031,3.81960394]
[1772590159697,6.85395192,87.15,87.071,3.80828689]
[1772590159895,6.85395192,87.15,87.088,3.80828689]
[1772590160296,4.53180009,87.16,87.088,3.80828689]
[1772590161094,10.325,87.158,87.07,21.3883671]
[1772590161394,4.53180009,87.14,87.07,16.85656701]
[1772590161594,4.53180009,87.14,87.07,6.52056701]
[1772590161994,4.53180009,87.14,87.07,11.0523671]
[1772590162196,4.53180009,87.14,87.071,6.52056701]
[1772590162586,4.53180009,87.14,87.074,6.52056701]
[1772590163496,4.53180009,87.14,87.076,6.52056701]
[1772590164196,6.85395192,87.148,87.08,6.52056701]
[1772590165189,6.85395192,87.148,87.083,6.52056701]
[1772590165798,6.85395192,87.139,87.07,4.53180009]
[1772590166203,6.85395192,87.139,87.063,6.52056701]
[1772590166799,6.85395192,87.137,87.063,6.52056701]
[1772590167204,6.85395192,87.119,87.05,4.53180009]
[1772590167391,6.85395192,87.119,87.051,6.52056701]
[1772590171096,6.85395192,87.117,87.032,6.52056701]
[1772590171701,10.332,87.104,87.032,6.52056701]
[1772590172002,6.85395192,87.103,87.032,6.52056701]
[1772590173104,6.85395192,87.124,87.034,6.52056701]
[1772590173404,6.85395192,87.124,87.041,6.52056701]
[1772590174199,6.85395192,87.121,87.046,6.52056701]
[1772590175003,6.85395192,87.109,87.046,6.52056701]
[1772590176206,6.85395192,87.104,87.046,6.52056701]
[1772590177300,6.85395192,87.087,87.029,6.52056701]
[1772590177608,6.85395192,87.087,87.001,6.52056701]
[1772590178205,6.85395192,87.082,87.003,6.52056701]
[1772590178509,6.85395192,87.069,87.003,6.52056701]
[1772590180203,6.85395192,87.069,87.005,10.343]
[1772590180408,6.85395192,87.069,87.006,6.52056701]
[1772590180911,6.85395192,87.069,87.008,6.52056701]
[1772590181912,6.85395192,87.069,87.01,6.52056701]
[1772590182413,6.85395192,87.069,87.013,6.52056701]
[1772590183004,6.85395192,87.069,86.996,6.52056701]